bitfinex-derivatives/quotes_BTCF0:USTF0_20241120
["timestamp","ask_amount","ask_price","bid_price","bid_amount"]
[1732112235693,0.15355204,94269.0,94252.0,0.3608]
[1732112235694,0.052988,94270.0,94268.0,0.052989]
[1732112236078,0.052992,94263.0,94262.0,0.052992]
[1732112236601,0.052993,94261.0,94260.0,0.3608]
[1732112237590,0.052993,94261.0,94260.0,0.3158]
[1732112237796,0.052998,94252.0,94251.0,0.413799]
[1732112238292,0.053001,94248.0,94247.0,0.19001851]
[1732112238590,0.053004,94242.0,94241.0,0.19001851]
[1732112238793,0.413802,94246.0,94244.0,0.053003]
[1732112239092,0.053004,94242.0,94240.0,0.00159145]
[1732112239683,1.5,94245.0,94240.0,0.00159145]
[1732112239888,1.5,94245.0,94244.0,0.053003]
[1732112240491,0.053,94249.0,94248.0,0.053001]
[1732112240686,0.18134,94264.0,94250.0,0.052999]
[1732112240687,0.053,94251.0,94250.0,0.052999]
[1732112241394,0.053001,94248.0,94244.0,0.19001851]
[1732112241585,0.053001,94248.0,94247.0,0.053001]
[1732112241786,0.053002,94245.0,94242.0,0.053003]
[1732112241986,0.053002,94245.0,94244.0,0.189919]
[1732112242301,0.052994,94261.0,94242.0,0.189919]
[1732112242302,0.15355204,94256.0,94242.0,0.189919]
[1732112242487,0.053005,94241.0,94240.0,0.00159145]
[1732112242796,0.053009,94234.0,94233.0,0.0317]
[1732112242999,0.053009,94234.0,94233.0,0.22161677]
[1732112243200,0.053009,94234.0,94233.0,0.0317]
[1732112243401,1.5,94246.0,94233.0,0.22161677]
[1732112243696,1.5,94246.0,94236.0,0.053007]
[1732112243996,0.053004,94243.0,94241.0,0.053004]
[1732112244187,0.053007,94237.0,94235.0,0.18991831]
[1732112244384,0.053009,94234.0,94233.0,0.0317]
[1732112245494,1.5,94237.0,94233.0,0.18989713]
[1732112245703,0.05301,94232.0,94231.0,0.55069713]
[1732112246286,0.05301,94232.0,94231.0,0.3608]
[1732112246786,0.053015,94223.0,94222.0,0.0312]
[1732112246987,0.053015,94223.0,94221.0,0.00011998]
[1732112247601,1.5,94222.0,94221.0,0.00011998]
[1732112248196,0.3608,94236.0,94221.0,0.00011998]
[1732112248197,0.0425742,94234.0,94221.0,0.00011998]
[1732112248400,0.0425742,94234.0,94221.0,0.18994359]
[1732112248588,0.40332752,94236.0,94221.0,0.00011998]
[1732112248795,1.5,94233.0,94221.0,0.00011998]
[1732112248988,0.053013,94227.0,94225.0,0.053013]
[1732112249303,0.053012,94229.0,94227.0,0.3608]
[1732112250589,1.5,94233.0,94221.0,0.00011998]
[1732112250590,0.053015,94222.0,94221.0,0.00011998]
[1732112251198,0.20656704,94222.0,94221.0,0.00011998]
[1732112251387,0.52496704,94222.0,94221.0,0.00011998]
[1732112251903,0.20656704,94222.0,94221.0,0.00011998]
[1732112252100,0.053015,94222.0,94221.0,0.00011998]
[1732112252411,0.20656704,94222.0,94221.0,0.00011998]
[1732112252587,0.15355204,94254.0,94225.0,0.053013]
[1732112252790,0.053008,94235.0,94229.0,0.053011]
[1732112253000,0.053008,94235.0,94230.0,0.3924]
[1732112253194,0.053008,94235.0,94233.0,0.053009]
[1732112253396,0.053011,94229.0,94210.0,0.3608]
[1732112253701,0.04418801,94242.0,94226.0,0.3608]
[1732112253702,0.053008,94235.0,94226.0,0.3608]
[1732112253899,8.573e-05,94234.0,94232.0,0.053009]
[1732112254902,0.05309473,94234.0,94232.0,0.053009]
[1732112255105,8.573e-05,94234.0,94232.0,0.053009]
[1732112255993,8.573e-05,94234.0,94233.0,0.31836]
[1732112256394,8.573e-05,94234.0,94232.0,0.053009]
[1732112256793,8.573e-05,94234.0,94227.0,0.3608]
[1732112256794,0.053011,94229.0,94227.0,0.3608]
[1732112257699,0.053011,94229.0,94227.0,0.413812]
[1732112257899,0.053011,94229.0,94227.0,0.3608]
[1732112259107,8.573e-05,94234.0,94233.0,0.053009]
[1732112260502,8.573e-05,94234.0,94233.0,0.371369]
[1732112262199,8.573e-05,94234.0,94233.0,0.053009]
[1732112262494,8.573e-05,94234.0,94233.0,0.371369]
[1732112262800,8.573e-05,94234.0,94233.0,0.053009]
[1732112263102,8.573e-05,94234.0,94228.0,0.25345301]
[1732112263303,0.053012,94228.0,94227.0,0.72312]
[1732112263503,8.573e-05,94234.0,94232.0,0.053009]
[1732112263504,0.05309473,94234.0,94232.0,0.053009]
[1732112263703,0.05309473,94234.0,94227.0,0.7216]
[1732112263704,8.573e-05,94234.0,94227.0,0.7216]
[1732112263896,0.053012,94229.0,94227.0,0.774612]
[1732112264300,0.053012,94229.0,94227.0,0.776212]
[1732112264709,0.053012,94229.0,94227.0,0.774612]
[1732112264902,0.053012,94229.0,94227.0,0.7216]
[1732112265608,8.573e-05,94234.0,94227.0,0.7216]
[1732112265808,8.573e-05,94234.0,94233.0,0.053009]
[1732112266003,8.573e-05,94234.0,94227.0,0.7216]
[1732112266206,0.05309473,94234.0,94232.0,0.05301]
[1732112266406,0.053012,94228.0,94227.0,0.774612]
[1732112266611,8.573e-05,94234.0,94227.0,0.7216]
[1732112266908,0.053012,94228.0,94227.0,0.7216]
[1732112267109,0.053012,94228.0,94227.0,0.97505301]
[1732112267510,8.573e-05,94234.0,94232.0,0.053009]
[1732112267815,8.573e-05,94234.0,94233.0,0.25345301]
[1732112268108,8.573e-05,94234.0,94232.0,0.053009]
[1732112268109,0.053009,94233.0,94232.0,0.053009]
[1732112268318,8.573e-05,94234.0,94231.0,0.25368692]
[1732112268507,8.573e-05,94234.0,94233.0,0.053009]
[1732112269213,8.573e-05,94234.0,94233.0,0.30671587]
[1732112269411,8.573e-05,94234.0,94233.0,0.053009]
[1732112270513,0.0015926,94242.0,94241.0,0.053005]
[1732112270715,0.0015926,94242.0,94241.0,0.66746699]
[1732112270906,0.052997,94255.0,94254.0,0.052997]
[1732112271607,1.5,94257.0,94250.0,0.3608]
[1732112271608,0.052998,94252.0,94250.0,0.3608]
[1732112271810,0.052998,94252.0,94251.0,0.052999]
[1732112272917,0.052998,94252.0,94250.0,0.3608]
[1732112272918,1.5,94257.0,94250.0,0.3608]
[1732112273211,0.052999,94251.0,94250.0,0.4138]
[1732112273418,0.052997,94256.0,94255.0,0.052996]
[1732112274914,1.5,94257.0,94256.0,0.052996]
[1732112275211,0.04195445,94269.0,94255.0,0.04334162]
[1732112275444,0.15355204,94272.0,94254.0,0.19023855]
[1732112275614,0.052993,94262.0,94261.0,0.052993]
[1732112275923,0.052994,94259.0,94258.0,0.55103855]
[1732112276117,0.15355204,94261.0,94256.0,0.3608]
[1732112276307,0.15355204,94261.0,94257.0,0.25365146]
[1732112276510,0.052995,94258.0,94256.0,0.3608]
[1732112276817,0.052995,94258.0,94256.0,0.61445146]
[1732112277219,0.052995,94258.0,94256.0,0.3608]
[1732112277616,0.052995,94258.0,94257.0,0.25351205]
[1732112277818,0.052995,94258.0,94256.0,0.61430813]
[1732112278022,0.052995,94258.0,94256.0,0.3608]
[1732112278215,0.052995,94258.0,94256.0,0.55093849]
[1732112278517,0.052995,94258.0,94257.0,0.19013837]
[1732112279122,1.5,94268.0,94261.0,0.052993]
[1732112279424,0.052993,94262.0,94261.0,0.052993]
[1732112279922,1.5,94268.0,94265.0,0.052991]
[1732112280118,0.05299,94267.0,94265.0,0.052991]
[1732112280621,1.5,94267.0,94265.0,0.25345301]
[1732112280820,1.5,94267.0,94256.0,0.413796]
[1732112280821,0.052992,94264.0,94262.0,0.25345301]
[1732112281125,1.5,94267.0,94261.0,0.19011147]
[1732112281126,0.052993,94262.0,94261.0,0.19011147]
[1732112281421,0.052995,94258.0,94257.0,0.13701836]
[1732112281626,0.052995,94258.0,94246.0,0.25345301]
[1732112281627,0.053001,94247.0,94246.0,0.25345301]
[1732112281919,0.052996,94256.0,94243.0,0.25345301]
[1732112281920,0.053002,94245.0,94243.0,0.25345301]
[1732112282117,0.053003,94243.0,94242.0,0.25345301]
[1732112282521,1.5,94244.0,94238.0,0.31707749]
[1732112282522,0.053006,94239.0,94238.0,0.31707749]
[1732112282714,0.053006,94239.0,94238.0,0.27207749]
[1732112283113,1.5,94244.0,94236.0,0.00159167]
[1732112283313,1.5,94244.0,94237.0,0.38493172]
[1732112283314,0.053007,94238.0,94237.0,0.38493172]
[1732112284426,0.053007,94238.0,94237.0,0.413807]
[1732112284615,0.053004,94243.0,94242.0,0.053004]
[1732112285131,0.0327,94263.0,94254.0,0.052997]
[1732112285312,0.20653904,94273.0,94254.0,0.25382802]
[1732112285313,0.052996,94256.0,94254.0,0.25382802]
[1732112285614,0.04222501,94266.0,94255.0,0.25379835]
[1732112285615,1.5,94265.0,94255.0,0.25379835]
[1732112285819,1.5,94265.0,94256.0,0.25379551]
[1732112286013,0.052996,94257.0,94256.0,0.25379551]
[1732112286207,1.5,94265.0,94251.0,0.3608]
[1732112286410,1.5,94265.0,94258.0,0.25378734]
[1732112286411,0.052995,94259.0,94258.0,0.25378734]
[1732112286610,0.052998,94252.0,94251.0,0.3608]
[1732112287011,1.5,94265.0,94251.0,0.3608]
[1732112287211,1.5,94265.0,94258.0,0.25378058]
[1732112287518,0.052996,94257.0,94256.0,0.052996]
[1732112287712,1.5,94265.0,94251.0,0.3608]
[1732112287911,1.5,94265.0,94259.0,0.25379037]
[1732112288121,0.052994,94260.0,94259.0,0.25379037]
[1732112288509,0.052996,94257.0,94256.0,0.052996]
[1732112288811,0.052993,94262.0,94260.0,0.052993]
[1732112290221,0.052986,94274.0,94272.0,0.052987]
[1732112290520,0.052986,94274.0,94273.0,0.3608]
[1732112290728,1.5,94276.0,94273.0,0.61452493]
[1732112290928,1.5,94276.0,94275.0,0.052985]
[1732112291225,0.00089,94277.0,94275.0,0.46026197]
[1732112291425,0.00089,94277.0,94275.0,0.20653704]
[1732112292125,0.00089,94277.0,94276.0,0.3182]
[1732112292329,0.00089,94277.0,94276.0,0.64303016]
[1732112292630,0.00089,94277.0,94276.0,0.00993909]
[1732112293315,0.00089,94277.0,94273.0,0.3608]
[1732112293523,0.052986,94275.0,94273.0,0.3608]
[1732112294024,0.00089,94277.0,94276.0,0.052985]
[1732112294212,0.00089,94277.0,94276.0,0.38940535]
[1732112294721,1.5,94295.0,94276.0,0.65462035]
[1732112295026,1.5,94295.0,94293.0,0.25331157]
[1732112295214,0.052975,94294.0,94290.0,0.25331157]
[1732112295525,0.052978,94290.0,94287.0,0.25331157]
[1732112295822,0.052979,94287.0,94284.0,0.25331157]
[1732112296019,1.5,94295.0,94286.0,0.052979]
[1732112296220,1.5,94295.0,94283.0,0.3608]
[1732112296221,1.5,94295.0,94290.0,0.052977]
[1732112296423,1.5,94295.0,94292.0,0.052976]
[1732112297223,1.5,94295.0,94283.0,0.3608]
[1732112297224,1.5,94295.0,94287.0,0.25331157]
[1732112297528,1.5,94295.0,94284.0,0.25331157]
[1732112297724,1.552975,94295.0,94284.0,0.25331157]
[1732112298124,1.552975,94295.0,94283.0,0.3608]
[1732112298125,1.5,94295.0,94283.0,0.61411157]
[1732112298425,0.052972,94300.0,94296.0,0.052973]
[1732112298627,0.052972,94300.0,94297.0,0.052973]
[1732112298822,1.5,94299.0,94297.0,0.052973]
[1732112300015,1.5,94299.0,94294.0,0.3608]
[1732112300016,0.052969,94304.0,94299.0,0.052972]
[1732112300215,0.052969,94304.0,94303.0,0.3608]
[1732112300617,1.552969,94304.0,94303.0,0.3608]
[1732112302014,1.5,94304.0,94303.0,0.3608]
[1732112302526,0.052969,94305.0,94303.0,0.40313676]
[1732112302733,0.10073786,94310.0,94303.0,0.3932]
[1732112302925,1.5,94317.0,94303.0,0.3932]
[1732112303128,0.10073786,94311.0,94303.0,0.3932]
[1732112303424,0.052967,94308.0,94303.0,0.3932]
[1732112303819,0.052967,94308.0,94306.0,0.052968]
[1732112304329,1.5,94317.0,94303.0,0.3932]
[1732112304626,1.5,94317.0,94303.0,0.49393786]
[1732112304830,1.5,94317.0,94315.0,0.052963]
[1732112305830,0.00159115,94323.0,94313.0,0.3608]
[1732112306024,0.052964,94314.0,94313.0,0.3608]
[1732112306225,0.00159115,94323.0,94313.0,0.67888]
[1732112306430,0.0049,94339.0,94322.0,0.46153786]
[1732112306627,0.3608,94352.0,94335.0,0.3608]
[1732112306829,0.052951,94336.0,94335.0,0.3608]
[1732112307918,0.052943,94351.0,94335.0,0.3608]
[1732112308124,0.052948,94342.0,94339.0,0.052949]
[1732112308323,0.052951,94338.0,94336.0,0.0332]
[1732112309128,0.052951,94338.0,94336.0,0.086151]
[1732112309520,0.04174528,94349.0,94336.0,0.0332]
[1732112309728,0.052947,94344.0,94343.0,0.3608]
[1732112310630,1.5,94348.0,94345.0,0.052946]
[1732112310833,0.052947,94344.0,94343.0,0.3608]
[1732112311322,1.5,94348.0,94343.0,0.40318967]
[1732112311522,0.052944,94349.0,94343.0,0.40318967]
[1732112311827,0.052944,94349.0,94348.0,0.052944]
[1732112312029,0.052946,94345.0,94343.0,0.40318967]
[1732112312230,0.052946,94345.0,94343.0,0.45613667]
[1732112312624,0.052946,94345.0,94343.0,0.35818967]
[1732112313323,0.04468143,94363.0,94343.0,0.35818967]
[1732112313525,0.052946,94346.0,94343.0,0.41113667]
[1732112313733,0.0657,94361.0,94343.0,0.41113667]
[1732112313734,0.052946,94345.0,94343.0,0.41113667]
[1732112314235,0.052942,94352.0,94349.0,0.052944]
[1732112314431,0.3608,94359.0,94343.0,0.35818967]
[1732112314631,0.0333,94361.0,94356.0,0.05294]
[1732112314841,0.052938,94359.0,94356.0,0.05294]
[1732112315134,0.00159031,94363.0,94361.0,0.052937]
[1732112315336,1.5,94370.0,94365.0,0.052934]
[1732112316034,1.5,94370.0,94362.0,0.3608]
[1732112316237,0.052934,94366.0,94362.0,0.413736]
[1732112316426,0.052936,94363.0,94362.0,0.3608]
[1732112316627,0.052941,94354.0,94353.0,0.3608]
[1732112317228,1.552941,94354.0,94353.0,0.3608]
[1732112317431,0.052945,94347.0,94346.0,0.00158972]
[1732112317625,0.20660012,94347.0,94346.0,0.00158972]
[1732112317828,0.20660012,94347.0,94334.0,0.3608]
[1732112317829,0.052952,94335.0,94334.0,0.3608]
[1732112318034,0.052955,94330.0,94328.0,0.3608]
[1732112318236,1.5,94335.0,94320.0,0.3608]
[1732112318432,1.5,94335.0,94304.0,0.37786104]
[1732112318433,0.052959,94322.0,94321.0,0.00993343]
[1732112318733,0.052959,94322.0,94310.0,0.3608]
[1732112318734,0.052962,94318.0,94310.0,0.3608]
[1732112319126,0.052962,94318.0,94311.0,0.052965]
[1732112319336,1.5,94317.0,94311.0,0.052965]
[1732112319727,1.5,94317.0,94310.0,0.40327393]
[1732112319923,1.5,94317.0,94310.0,0.3608]
[1732112320138,1.54285547,94317.0,94310.0,0.3608]
[1732112321732,0.3608,94322.0,94316.0,0.15524551]
[1732112322039,0.0015907,94336.0,94319.0,0.3608]
[1732112322238,0.0015907,94336.0,94329.0,0.052955]
[1732112322239,0.052953,94333.0,94329.0,0.052955]
[1732112322633,0.052954,94332.0,94329.0,0.052955]
[1732112322842,0.052954,94332.0,94331.0,0.052954]
[1732112323841,0.0015907,94336.0,94334.0,0.052952]
[1732112325240,0.052954,94331.0,94328.0,0.3608]
[1732112326341,0.052955,94330.0,94322.0,0.052959]
[1732112326542,0.05296,94321.0,94319.0,0.41376]
[1732112326748,0.05296,94321.0,94320.0,0.0099348]
[1732112327041,0.0015907,94336.0,94326.0,0.052956]
[1732112327042,0.052956,94328.0,94326.0,0.052956]
[1732112327647,0.052956,94328.0,94326.0,0.007956]
[1732112327833,0.052946,94345.0,94320.0,0.3608]
[1732112327834,1.5,94327.0,94320.0,0.3608]
[1732112328037,1.552957,94327.0,94326.0,0.052956]
[1732112328533,1.552957,94327.0,94320.0,0.3608]
[1732112328534,0.052958,94324.0,94322.0,0.052959]
[1732112328737,0.052958,94324.0,94323.0,0.02649141]
[1732112329040,0.052958,94324.0,94323.0,0.00993428]
[1732112329252,0.052958,94324.0,94323.0,0.01655711]
[1732112329943,0.052958,94324.0,94322.0,0.052959]
[1732112330144,0.052958,94324.0,94323.0,0.01655728]
[1732112330743,1.552958,94324.0,94323.0,0.01655728]
[1732112331737,1.5,94324.0,94323.0,0.01655786]
[1732112331939,1.552958,94324.0,94323.0,0.01655786]
[1732112332338,1.552958,94324.0,94323.0,0.0264926]
[1732112332951,1.552958,94324.0,94323.0,0.05298525]
[1732112333853,1.552958,94324.0,94323.0,0.05298511]
[1732112334555,0.052958,94324.0,94323.0,0.03642728]
[1732112334854,0.052958,94324.0,94323.0,0.10594308]
[1732112335156,0.052951,94336.0,94323.0,0.15365728]
[1732112335446,0.052952,94335.0,94334.0,0.3608]
[1732112335755,0.052952,94335.0,94334.0,0.40385034]
[1732112337454,1.552952,94335.0,94334.0,0.40385034]
[1732112337643,0.052941,94354.0,94351.0,0.052943]
[1732112337841,0.04154711,94358.0,94351.0,0.45679334]
[1732112338049,0.05294,94356.0,94351.0,0.43030082]
[1732112338245,0.052941,94355.0,94351.0,0.43030082]
[1732112338448,0.04154711,94358.0,94351.0,0.01655782]
[1732112338449,0.15520454,94352.0,94351.0,0.01655782]
[1732112338653,0.05453234,94352.0,94351.0,0.01655782]
[1732112338846,0.05453234,94352.0,94351.0,0.06950082]
[1732112339043,0.05453234,94352.0,94351.0,0.01655782]
[1732112339656,0.05453234,94352.0,94351.0,0.43030082]
[1732112340251,0.00159034,94352.0,94351.0,0.43030082]
[1732112340447,0.00159034,94352.0,94351.0,0.37735782]
[1732112340643,0.05453234,94352.0,94351.0,0.01655782]
[1732112340849,0.052945,94347.0,94346.0,0.25331157]
[1732112341048,0.052945,94347.0,94343.0,0.3608]
[1732112341049,0.052947,94344.0,94343.0,0.3608]
[1732112341243,0.052947,94344.0,94343.0,0.37735504]
[1732112341638,0.052952,94334.0,94333.0,0.56982734]
[1732112341843,0.052952,94334.0,94333.0,0.42905151]
[1732112341844,1.5,94334.0,94333.0,0.42905151]
[1732112342048,0.052948,94342.0,94341.0,0.052947]
[1732112342253,0.04324735,94350.0,94340.0,0.3608]
[1732112342444,1.5,94351.0,94340.0,0.3608]
[1732112342650,0.052946,94346.0,94345.0,0.052946]
[1732112343451,0.052946,94346.0,94345.0,0.07943242]
[1732112343651,0.052946,94346.0,94345.0,0.06950001]
[1732112344153,0.052946,94346.0,94345.0,0.01655401]
[1732112344452,0.052946,94346.0,94340.0,0.3608]
[1732112344660,0.052946,94346.0,94333.0,0.6128543]
[1732112344661,0.052952,94334.0,94333.0,0.56982734]
[1732112344849,1.70662135,94334.0,94333.0,0.56982734]
[1732112345161,1.70662135,94334.0,94333.0,0.31651577]
[1732112346456,2.02466135,94334.0,94333.0,0.31651577]
[1732112346754,2.06647341,94334.0,94333.0,0.31651577]
[1732112346958,2.22991341,94334.0,94333.0,0.16584004]
[1732112347144,2.52991341,94334.0,94333.0,0.11594004]
[1732112347646,2.52991341,94334.0,94310.0,0.086266]
[1732112347647,0.052965,94311.0,94310.0,0.086266]
[1732112347855,0.052955,94330.0,94310.0,0.42059582]
[1732112348047,1.54181206,94334.0,94319.0,0.15366935]
[1732112348254,0.3608,94340.0,94326.0,0.3608]
[1732112348562,0.15366935,94327.0,94318.0,0.3608]
[1732112348862,0.052961,94319.0,94318.0,0.3608]
[1732112349257,0.052961,94319.0,94314.0,0.25358088]
[1732112349258,0.052963,94315.0,94314.0,0.25358088]
[1732112349755,0.052965,94311.0,94310.0,0.0333]
[1732112350557,0.052967,94308.0,94307.0,0.3608]
[1732112351760,0.052967,94308.0,94307.0,0.61432177]
[1732112352254,0.052967,94308.0,94307.0,0.3608]
[1732112352648,1.552967,94308.0,94307.0,0.3608]
[1732112353260,0.04330787,94315.0,94307.0,0.3608]
[1732112353462,0.052966,94309.0,94307.0,0.3608]
[1732112353654,1.5,94308.0,94307.0,0.61430842]
[1732112353847,0.052966,94309.0,94307.0,0.3608]
[1732112355761,0.052966,94309.0,94308.0,0.06290327]
[1732112356361,1.5,94323.0,94308.0,0.06290327]
[1732112356559,1.5,94323.0,94307.0,0.3608]
[1732112356759,0.052967,94309.0,94307.0,0.3608]
[1732112357162,0.052969,94305.0,94304.0,0.0015903]
[1732112357761,0.052973,94298.0,94296.0,0.053433]
[1732112357971,0.052973,94298.0,94297.0,0.00993735]
[1732112358868,0.052973,94298.0,94296.0,0.00046]
[1732112360957,0.052969,94305.0,94303.0,0.05297]
[1732112362574,0.15366935,94311.0,94297.0,0.3608]
[1732112362766,0.052972,94299.0,94297.0,0.3608]
[1732112363371,0.10075346,94311.0,94297.0,0.3608]
[1732112363567,0.052966,94310.0,94297.0,0.3608]
[1732112363768,0.3608,94308.0,94296.0,0.053434]
[1732112364062,0.052973,94298.0,94296.0,0.00046]
[1732112364265,0.10075346,94304.0,94296.0,0.00046]
[1732112364466,0.052971,94301.0,94298.0,0.052972]
[1732112364769,0.052973,94297.0,94296.0,0.00046]
[1732112365277,0.052971,94300.0,94297.0,0.052973]
[1732112365492,0.052972,94299.0,94297.0,0.052973]
[1732112366382,0.052972,94299.0,94296.0,0.00046]
[1732112366383,0.052968,94306.0,94296.0,0.00046]
[1732112366692,0.052968,94306.0,94303.0,0.052969]
[1732112367081,0.052968,94306.0,94304.0,0.052969]
[1732112369700,0.052968,94306.0,94298.0,0.3608]
[1732112369701,0.3608,94308.0,94306.0,0.052968]
[1732112369887,1.5049,94323.0,94298.0,0.3608]
[1732112369888,0.10075346,94325.0,94299.0,0.25305472]
[1732112370083,0.10075346,94325.0,94301.0,0.25305472]
[1732112370084,0.052963,94315.0,94301.0,0.25305472]
[1732112370290,0.50498021,94317.0,94309.0,0.413766]
[1732112370596,0.41535297,94317.0,94309.0,0.3608]
[1732112370890,0.41535297,94317.0,94315.0,0.052963]
[1732112371093,0.41535297,94317.0,94309.0,0.3608]
[1732112371094,0.052966,94311.0,94309.0,0.413766]
[1732112371491,0.052966,94311.0,94309.0,0.66682072]
[1732112372282,0.052966,94311.0,94309.0,0.413766]
[1732112372491,0.15530643,94317.0,94313.0,0.052964]
[1732112372801,0.10234443,94317.0,94310.0,0.25305472]
[1732112373200,0.052965,94312.0,94311.0,0.25305472]
[1732112373503,0.052965,94311.0,94310.0,0.052965]
[1732112373705,0.15530643,94317.0,94313.0,0.052964]
[1732112373893,0.10234443,94317.0,94313.0,0.052964]
[1732112374088,0.052963,94316.0,94315.0,0.052963]
[1732112378393,0.052963,94316.0,94315.0,0.3066706]
[1732112379300,0.052963,94316.0,94315.0,0.2537076]
[1732112380302,0.00159097,94317.0,94314.0,0.2537076]
[1732112380603,0.2206075,94352.0,94309.0,0.3608]
[1732112380604,0.3608,94338.0,94316.0,0.77875541]
[1732112380796,0.04207144,94334.0,94327.0,0.052956]
[1732112381001,0.3608,94338.0,94327.0,0.052956]
[1732112381002,0.052956,94328.0,94327.0,0.052956]
[1732112383803,0.10075346,94333.0,94325.0,0.3608]
[1732112383804,0.052957,94326.0,94325.0,0.3608]
[1732112384201,0.052957,94326.0,94325.0,0.413757]
[1732112384907,0.052947,94343.0,94342.0,0.052947]
[1732112385101,0.052947,94343.0,94342.0,0.3608]
[1732112385312,1.552947,94343.0,94342.0,0.3608]
[1732112385604,0.052951,94337.0,94336.0,0.25356319]
[1732112385904,0.052952,94335.0,94334.0,0.05295]
[1732112386109,0.3608,94346.0,94339.0,0.05295]
[1732112386297,1.5,94347.0,94341.0,0.25345496]
[1732112386498,1.5,94347.0,94340.0,0.0329]
[1732112386707,0.052944,94349.0,94340.0,0.28635496]
[1732112387006,0.00159034,94352.0,94351.0,0.052943]
[1732112387208,0.05453234,94352.0,94351.0,0.052943]
[1732112387797,0.05453234,94352.0,94349.0,0.052944]
[1732112387798,0.052944,94350.0,94349.0,0.052944]
[1732112388397,0.00159034,94352.0,94351.0,0.052943]
[1732112388601,0.00159034,94352.0,94345.0,0.3608]
[1732112388807,0.15369946,94346.0,94345.0,0.3608]
[1732112389205,0.15369946,94346.0,94345.0,0.413746]
[1732112390011,0.15369946,94346.0,94340.0,0.0329]
[1732112390012,0.052948,94341.0,94340.0,0.0329]
[1732112393398,0.052951,94336.0,94335.0,0.3608]
[1732112394106,1.552951,94336.0,94335.0,0.3608]
[1732112394614,0.052957,94326.0,94325.0,0.0646]
[1732112396209,0.052957,94325.0,94324.0,0.3608]
[1732112398315,0.052961,94319.0,94318.0,0.25304543]
[1732112398513,0.052963,94315.0,94314.0,0.0332]
[1732112401512,0.052965,94311.0,94310.0,0.19004232]
[1732112401812,0.052962,94318.0,94306.0,0.25304543]
[1732112401813,0.052967,94307.0,94306.0,0.25304543]
[1732112402120,0.3608,94319.0,94304.0,0.052969]
[1732112402121,0.3608,94319.0,94305.0,0.04314782]
[1732112402313,0.052964,94314.0,94313.0,0.052962]
[1732112402514,0.052964,94314.0,94313.0,0.084962]
[1732112402813,0.052962,94317.0,94311.0,0.3478]
[1732112403018,0.052962,94317.0,94316.0,0.30633615]
[1732112403723,0.052962,94317.0,94316.0,0.052962]
[1732112404021,0.05296,94322.0,94321.0,0.052958]
[1732112404209,0.052957,94327.0,94326.0,0.052955]
[1732112405013,0.3608,94332.0,94323.0,0.31672808]
[1732112405222,0.3608,94332.0,94320.0,0.0309]
[1732112405223,0.052955,94330.0,94329.0,0.25339298]
[1732112405516,0.052956,94327.0,94326.0,0.25341811]
[1732112405720,0.15370946,94327.0,94326.0,0.25341811]
[1732112406023,0.15370946,94327.0,94319.0,0.19006849]
[1732112406224,0.15370946,94327.0,94320.0,0.3608]
[1732112406225,0.05296,94321.0,94320.0,0.3608]
[1732112406421,0.0321,94326.0,94318.0,0.25341811]
[1732112406422,0.052961,94319.0,94318.0,0.25341811]
[1732112406625,0.0321,94326.0,94312.0,0.052965]
[1732112406822,0.052964,94313.0,94312.0,0.052965]
[1732112407022,0.052964,94313.0,94312.0,0.37161373]
[1732112407220,0.052964,94313.0,94312.0,0.31682705]
[1732112407421,0.052964,94313.0,94312.0,0.31913481]
[1732112407622,0.0321,94326.0,94318.0,0.052961]
[1732112407821,0.10075346,94327.0,94322.0,0.25346804]
[1732112408326,0.10075346,94327.0,94317.0,0.31683505]
[1732112408626,0.10075346,94327.0,94311.0,0.39193919]
[1732112408627,0.15370946,94327.0,94326.0,0.19011405]
[1732112408818,0.052957,94326.0,94321.0,0.25347232]
[1732112409012,0.052957,94326.0,94317.0,0.31683505]
[1732112409013,0.10075346,94323.0,94317.0,0.25347232]
[1732112409226,0.10075346,94323.0,94321.0,0.19012301]
[1732112409227,0.052959,94322.0,94321.0,0.19012301]
[1732112409413,0.10075346,94323.0,94320.0,0.03115576]
[1732112409616,0.529606,94320.0,94294.0,0.08932233]
[1732112409932,0.529606,94320.0,94287.0,0.00162286]
[1732112409933,0.052975,94294.0,94279.0,0.00152]
[1732112410224,0.052984,94279.0,94275.0,0.00159105]
[1732112410424,0.46155346,94280.0,94275.0,0.00159105]
[1732112411031,0.10075346,94276.0,94275.0,0.00159105]
[1732112411219,0.10075346,94276.0,94251.0,0.0302]
[1732112411415,0.10075346,94260.0,94251.0,0.0302]
[1732112412018,0.3608,94269.0,94251.0,0.0302]
[1732112412434,0.10075346,94267.0,94251.0,0.0302]
[1732112412631,0.13636107,94279.0,94258.0,0.10075346]
[1732112412820,0.13636107,94279.0,94278.0,0.052984]
[1732112412821,0.00012107,94279.0,94278.0,0.052984]
[1732112415732,0.0049,94298.0,94297.0,0.052973]
[1732112415933,0.0015917,94299.0,94297.0,0.413773]
[1732112417726,0.0015917,94299.0,94297.0,0.3608]
[1732112417940,0.0015917,94299.0,94297.0,0.413773]
[1732112418324,0.0015917,94299.0,94297.0,0.45555718]
[1732112419219,0.0015917,94299.0,94297.0,0.40258418]
[1732112419427,0.0015917,94299.0,94298.0,0.052973]
[1732112420832,0.0015917,94299.0,94297.0,0.3608]
[1732112421128,0.0309,94298.0,94297.0,0.3608]
[1732112421332,1.5309,94298.0,94297.0,0.3608]
[1732112421752,1.5309,94298.0,94297.0,0.413773]
[1732112421930,0.0015917,94299.0,94297.0,0.413773]
[1732112423433,0.0049,94317.0,94298.0,0.31816]
[1732112423638,0.00159104,94318.0,94316.0,0.052962]
[1732112423931,4e-08,94318.0,94316.0,0.052962]
[1732112424129,4e-08,94318.0,94317.0,0.31808]
[1732112424335,0.0049,94336.0,94335.0,0.052952]
[1732112424519,0.15379739,94349.0,94348.0,0.052944]
[1732112425334,0.1956588,94349.0,94348.0,0.052944]
[1732112426428,1.6956588,94349.0,94348.0,0.052944]